[Event "*** SCC Grand Prix: Titled Tuesday Blitz"]
[Site "Chess.com"]
[Date "2020.06.02"]
[Round "1"]
[White "Goryachkina"]
[Black "fidezivkovic"]
[Result "1-0"]
[WhiteElo "2599"]
[BlackElo "2256"]
[TimeControl "180+1"]
[EndTime "10:06:30 PDT"]
[Termination "Goryachkina won on time"]

1. e4 {[%clk 0:03:00.9]} 1... c5 {[%clk 0:02:59.3]} 2. Nf3 {[%clk 0:03:00.7]}
2... g6 {[%clk 0:02:58.5]} 3. c3 {[%clk 0:02:58.9]} 3... Bg7 {[%clk 0:02:57.1]}
4. d4 {[%clk 0:02:58.5]} 4... cxd4 {[%clk 0:02:57.3]} 5. cxd4 {[%clk 0:02:58.3]}
5... d5 {[%clk 0:02:57.7]} 6. e5 {[%clk 0:02:57.6]} 6... Bg4 {[%clk 0:02:57.1]}
7. Bb5+ {[%clk 0:02:54.6]} 7... Bd7 {[%clk 0:02:55.7]} 8. Bxd7+ {[%clk
0:02:43.8]} 8... Qxd7 {[%clk 0:02:50.5]} 9. O-O {[%clk 0:02:43.7]} 9... Nc6
{[%clk 0:02:49.2]} 10. Nc3 {[%clk 0:02:42.1]} 10... f6 {[%clk 0:02:37.5]} 11.
Bf4 {[%clk 0:02:34.1]} 11... fxe5 {[%clk 0:01:54]} 12. Nxe5 {[%clk 0:02:33.4]}
12... Nxe5 {[%clk 0:01:51.7]} 13. Bxe5 {[%clk 0:02:25.7]} 13... Bxe5 {[%clk
0:01:45.2]} 14. dxe5 {[%clk 0:02:25.5]} 14... e6 {[%clk 0:01:44.2]} 15. Qg4
{[%clk 0:02:05.5]} 15... Ne7 {[%clk 0:01:39.3]} 16. Rad1 {[%clk 0:02:02.5]}
16... O-O {[%clk 0:01:36.3]} 17. Ne4 {[%clk 0:01:57.4]} 17... Kg7 {[%clk
0:00:35.9]} 18. Nf6 {[%clk 0:01:56.6]} 18... Qc8 {[%clk 0:00:34.1]} 19. Qh4
{[%clk 0:01:46.7]} 19... h6 {[%clk 0:00:27.2]} 20. Rc1 {[%clk 0:01:26.4]} 20...
Nc6 {[%clk 0:00:25.5]} 21. Ng4 {[%clk 0:01:25.7]} 21... h5 {[%clk 0:00:21]} 22.
Nf6 {[%clk 0:01:25.5]} 22... Qd8 {[%clk 0:00:19.7]} 23. Qg5 {[%clk 0:01:22.4]}
23... Nxe5 {[%clk 0:00:12]} 24. Nxh5+ {[%clk 0:01:19.7]} 24... Kh7 {[%clk
0:00:09.1]} 25. Qxe5 {[%clk 0:01:18.8]} 25... gxh5 {[%clk 0:00:08.3]} 26. Qxh5+
{[%clk 0:01:12.7]} 26... Kg7 {[%clk 0:00:07.2]} 27. Rc3 {[%clk 0:01:09.7]} 27...
Rf5 {[%clk 0:00:02.2]} 28. Rg3+ {[%clk 0:01:06.8]} 28... Kf8 {[%clk 0:00:01.4]}
29. Qh7 {[%clk 0:00:54.8]} 1-0

[Event "*** SCC Grand Prix: Titled Tuesday Blitz"]
[Site "Chess.com"]
[Date "2020.06.02"]
[Round "1"]
[White "Baronessa08"]
[Black "neurisdr"]
[Result "0-1"]
[WhiteElo "2389"]
[BlackElo "2767"]
[TimeControl "180+1"]
[EndTime "10:06:32 PDT"]
[Termination "neurisdr won by resignation"]

1. c4 {[%clk 0:02:59.9]} 1... b6 {[%clk 0:02:57.8]} 2. g3 {[%clk 0:02:57.1]}
2... Bb7 {[%clk 0:02:58]} 3. Nf3 {[%clk 0:02:55.2]} 3... Nc6 {[%clk 0:02:57.5]}
4. Bg2 {[%clk 0:02:54.7]} 4... Nd4 {[%clk 0:02:57.1]} 5. e3 {[%clk 0:02:51.6]}
5... Nxf3+ {[%clk 0:02:56.8]} 6. Bxf3 {[%clk 0:02:52.3]} 6... Bxf3 {[%clk
0:02:57.3]} 7. Qxf3 {[%clk 0:02:52.7]} 7... g6 {[%clk 0:02:57.9]} 8. O-O {[%clk
0:02:52.1]} 8... Bg7 {[%clk 0:02:58.1]} 9. d4 {[%clk 0:02:49.1]} 9... Nf6 {[%clk
0:02:58.3]} 10. e4 {[%clk 0:02:47.2]} 10... d6 {[%clk 0:02:56]} 11. e5 {[%clk
0:02:41.9]} 11... Nd7 {[%clk 0:02:55.1]} 12. exd6 {[%clk 0:02:23.7]} 12... cxd6
{[%clk 0:02:54.7]} 13. Be3 {[%clk 0:02:23.6]} 13... O-O {[%clk 0:02:52.8]} 14.
Nc3 {[%clk 0:02:23.3]} 14... Rc8 {[%clk 0:02:53.3]} 15. b3 {[%clk 0:02:19.1]}
15... a6 {[%clk 0:02:53.1]} 16. Rac1 {[%clk 0:02:15.8]} 16... Nf6 {[%clk
0:02:50.7]} 17. Rfd1 {[%clk 0:02:13.3]} 17... Qc7 {[%clk 0:02:43.9]} 18. Bg5
{[%clk 0:02:05.8]} 18... Qa7 {[%clk 0:02:43.4]} 19. h4 {[%clk 0:01:54.6]} 19...
Rfe8 {[%clk 0:02:42.6]} 20. Bxf6 {[%clk 0:01:51.4]} 20... Bxf6 {[%clk
0:02:41.7]} 21. h5 {[%clk 0:01:50.2]} 21... Bg7 {[%clk 0:02:42.3]} 22. Kg2
{[%clk 0:01:37.1]} 22... b5 {[%clk 0:02:41.3]} 23. Ne4 {[%clk 0:01:16.5]} 23...
bxc4 {[%clk 0:02:34.5]} 24. bxc4 {[%clk 0:01:17.4]} 24... Bxd4 {[%clk
0:02:25.4]} 25. hxg6 {[%clk 0:01:14.6]} 25... hxg6 {[%clk 0:02:23.4]} 26. Rh1
{[%clk 0:01:09.8]} 26... Bg7 {[%clk 0:02:20.3]} 27. Ng5 {[%clk 0:01:03.9]} 27...
Qa8 {[%clk 0:02:18.5]} 28. Ne4 {[%clk 0:00:56.5]} 28... f5 {[%clk 0:02:17.4]}
29. Ng5 {[%clk 0:00:55]} 29... Qxf3+ {[%clk 0:02:15.8]} 30. Kxf3 {[%clk
0:00:55]} 30... Rc6 {[%clk 0:02:12.5]} 31. Ne6 {[%clk 0:00:43.3]} 31... Bf6
{[%clk 0:02:09]} 32. Rh6 {[%clk 0:00:40.1]} 32... Kf7 {[%clk 0:02:08.1]} 33. Nf4
{[%clk 0:00:38.4]} 33... e5 {[%clk 0:01:58.5]} 34. Nd5 {[%clk 0:00:20.9]} 34...
Bg7 {[%clk 0:01:57.3]} 35. Rh4 {[%clk 0:00:17.8]} 35... g5 {[%clk 0:01:54]} 36.
Rh5 {[%clk 0:00:17.3]} 36... Kg6 {[%clk 0:01:53.5]} 37. Rhh1 {[%clk 0:00:17.4]}
37... e4+ {[%clk 0:01:50.7]} 38. Ke2 {[%clk 0:00:17.1]} 38... Rc5 {[%clk
0:01:47.9]} 39. Rhd1 {[%clk 0:00:14.8]} 39... Rb8 {[%clk 0:01:45.8]} 40. a3
{[%clk 0:00:10.8]} 40... Rb2+ {[%clk 0:01:43.3]} 41. Rd2 {[%clk 0:00:08.6]}
41... Be5 {[%clk 0:01:42]} 42. Ne7+ {[%clk 0:00:06.7]} 42... Kf6 {[%clk
0:01:39.9]} 43. Nd5+ {[%clk 0:00:07.3]} 43... Kf7 {[%clk 0:01:38.6]} 44. Nb4
{[%clk 0:00:03.3]} 44... Rxd2+ {[%clk 0:01:32]} 45. Kxd2 {[%clk 0:00:04.2]}
45... f4 {[%clk 0:01:31.7]} 46. gxf4 {[%clk 0:00:04.1]} 46... Bxf4+ {[%clk
0:01:31.2]} 0-1

[Event "*** SCC Grand Prix: Titled Tuesday Blitz"]
[Site "Chess.com"]
[Date "2020.06.02"]
[Round "1"]
[White "PredragNikac"]
[Black "KNVB"]
[Result "1-0"]
[WhiteElo "2362"]
[BlackElo "2682"]
[TimeControl "180+1"]
[EndTime "10:06:32 PDT"]
[Termination "PredragNikac won on time"]

1. d4 {[%clk 0:02:57.9]} 1... Nf6 {[%clk 0:02:53.1]} 2. Bg5 {[%clk 0:02:57]}
2... e6 {[%clk 0:02:50.2]} 3. e4 {[%clk 0:02:56.5]} 3... h6 {[%clk 0:02:50.2]}
4. Bxf6 {[%clk 0:02:56.4]} 4... Qxf6 {[%clk 0:02:51.1]} 5. e5 {[%clk 0:02:56.6]}
5... Qd8 {[%clk 0:02:48]} 6. Bd3 {[%clk 0:02:56.2]} 6... c5 {[%clk 0:02:41.4]}
7. dxc5 {[%clk 0:02:55.6]} 7... Bxc5 {[%clk 0:02:36]} 8. Qe2 {[%clk 0:02:55.1]}
8... Nc6 {[%clk 0:02:15.3]} 9. Nf3 {[%clk 0:02:54.3]} 9... d6 {[%clk 0:02:15.7]}
10. exd6 {[%clk 0:02:50.2]} 10... Bxd6 {[%clk 0:02:14.1]} 11. Nbd2 {[%clk
0:02:49.7]} 11... Qc7 {[%clk 0:02:09.9]} 12. Nc4 {[%clk 0:02:48.8]} 12... Be7
{[%clk 0:02:08.1]} 13. Nce5 {[%clk 0:02:47.7]} 13... Nxe5 {[%clk 0:01:57.9]} 14.
Nxe5 {[%clk 0:02:47.1]} 14... Bb4+ {[%clk 0:01:56.3]} 15. Kf1 {[%clk 0:02:41.7]}
15... Bd6 {[%clk 0:00:53.4]} 16. Re1 {[%clk 0:02:24.4]} 16... a6 {[%clk
0:00:46.1]} 17. h4 {[%clk 0:02:23.9]} 17... b5 {[%clk 0:00:40.9]} 18. Rh3 {[%clk
0:02:23.4]} 18... Bxe5 {[%clk 0:00:27]} 19. Qxe5 {[%clk 0:02:22.6]} 19... Qxe5
{[%clk 0:00:27.9]} 20. Rxe5 {[%clk 0:02:22.7]} 20... Ke7 {[%clk 0:00:22.3]} 21.
h5 {[%clk 0:02:19.6]} 21... Rd8 {[%clk 0:00:14.9]} 22. Rg3 {[%clk 0:02:19.4]}
22... Kf8 {[%clk 0:00:15.3]} 23. f4 {[%clk 0:02:19.1]} 23... Bd7 {[%clk
0:00:12.1]} 24. Kf2 {[%clk 0:02:16.6]} 24... Rac8 {[%clk 0:00:12.6]} 25. Rge3
{[%clk 0:02:15.5]} 25... Rc6 {[%clk 0:00:11.9]} 26. g4 {[%clk 0:02:15]} 26...
Rdc8 {[%clk 0:00:07.1]} 27. g5 {[%clk 0:02:13.5]} 27... f6 {[%clk 0:00:05.3]}
28. gxf6 {[%clk 0:02:09.6]} 28... gxf6 {[%clk 0:00:06.2]} 29. R5e4 {[%clk
0:02:09.6]} 29... f5 {[%clk 0:00:06.8]} 30. Re5 {[%clk 0:02:09.3]} 30... Rd6
{[%clk 0:00:05.2]} 31. a3 {[%clk 0:02:06.7]} 31... Kf7 {[%clk 0:00:05]} 32. Rg3
{[%clk 0:02:03.9]} 32... Rg8 {[%clk 0:00:03.8]} 33. Rxg8 {[%clk 0:02:03.2]}
33... Kxg8 {[%clk 0:00:04.7]} 34. Re3 {[%clk 0:02:02.3]} 34... Kf8 {[%clk
0:00:04.1]} 35. Rg3 {[%clk 0:02:02.1]} 35... Be8 {[%clk 0:00:04.6]} 36. Ke3
{[%clk 0:01:59.8]} 36... Bf7 {[%clk 0:00:03.2]} 37. b4 {[%clk 0:01:53.1]} 37...
Ke7 {[%clk 0:00:03.3]} 38. c4 {[%clk 0:01:52]} 38... bxc4 {[%clk 0:00:03.9]} 39.
Bxc4 {[%clk 0:01:51.7]} 39... Kf6 {[%clk 0:00:03.2]} 40. Rh3 {[%clk 0:01:49.4]}
40... Rd8 {[%clk 0:00:03]} 41. Bxa6 {[%clk 0:01:46.3]} 41... e5 {[%clk
0:00:02.4]} 42. fxe5+ {[%clk 0:01:45.1]} 42... Kxe5 {[%clk 0:00:03.3]} 43. Be2
{[%clk 0:01:39.3]} 43... f4+ {[%clk 0:00:03.3]} 44. Kf2 {[%clk 0:01:38.9]} 44...
Rd2 {[%clk 0:00:02.6]} 45. Rc3 {[%clk 0:01:36]} 45... Kd4 {[%clk 0:00:01.9]} 46.
Rc7 {[%clk 0:01:31.4]} 46... Bxh5 {[%clk 0:00:01.7]} 47. Rd7+ {[%clk 0:01:28.9]}
1-0

[Event "*** SCC Grand Prix: Titled Tuesday Blitz"]
[Site "Chess.com"]
[Date "2020.06.02"]
[Round "1"]
[White "Eliwood44"]
[Black "ftorodent"]
[Result "0-1"]
[WhiteElo "2329"]
[BlackElo "2662"]
[TimeControl "180+1"]
[EndTime "10:06:32 PDT"]
[Termination "ftorodent won by checkmate"]

1. d4 {[%clk 0:03:00.9]} 1... f5 {[%clk 0:02:59]} 2. Bf4 {[%clk 0:02:49.8]} 2...
Nf6 {[%clk 0:02:57.7]} 3. e3 {[%clk 0:02:48.7]} 3... g6 {[%clk 0:02:55.4]} 4. h4
{[%clk 0:02:47.5]} 4... h6 {[%clk 0:02:49.8]} 5. Bd3 {[%clk 0:02:40.8]} 5... d6
{[%clk 0:02:48.4]} 6. Qf3 {[%clk 0:02:35.2]} 6... Bg7 {[%clk 0:02:38.9]} 7. Nc3
{[%clk 0:02:31.4]} 7... Nc6 {[%clk 0:02:33.5]} 8. Qg3 {[%clk 0:02:23.3]} 8...
Kf7 {[%clk 0:01:57.2]} 9. Nf3 {[%clk 0:02:19.5]} 9... Nh5 {[%clk 0:01:50.1]} 10.
Qh2 {[%clk 0:02:19]} 10... Nxf4 {[%clk 0:01:28.7]} 11. exf4 {[%clk 0:02:12]}
11... Nxd4 {[%clk 0:01:22.6]} 12. Nxd4 {[%clk 0:02:06.2]} 12... Bxd4 {[%clk
0:01:22.5]} 13. h5 {[%clk 0:02:05.3]} 13... Bxc3+ {[%clk 0:01:18.5]} 14. bxc3
{[%clk 0:02:05.1]} 14... e6 {[%clk 0:01:18.4]} 15. hxg6+ {[%clk 0:02:04.8]}
15... Kg7 {[%clk 0:01:18.6]} 16. g4 {[%clk 0:02:05.3]} 16... Qf6 {[%clk
0:01:18.1]} 17. Kd2 {[%clk 0:02:01.8]} 17... fxg4 {[%clk 0:01:12]} 18. Rag1
{[%clk 0:01:54.8]} 18... e5 {[%clk 0:01:11.9]} 19. fxe5 {[%clk 0:01:52.4]} 19...
dxe5 {[%clk 0:01:11.8]} 20. Re1 {[%clk 0:01:51.1]} 20... Bf5 {[%clk 0:00:58.3]}
21. Bxf5 {[%clk 0:01:40]} 21... Qxf5 {[%clk 0:00:55.9]} 22. Rxe5 {[%clk
0:01:37.6]} 22... Qf6 {[%clk 0:00:47.2]} 23. Rhe1 {[%clk 0:01:35.9]} 23... Rad8+
{[%clk 0:00:45.2]} 24. Kc1 {[%clk 0:01:30.7]} 24... Rd7 {[%clk 0:00:45.3]} 25.
Re6 {[%clk 0:01:18.5]} 25... Qxc3 {[%clk 0:00:35.4]} 26. Re7+ {[%clk 0:01:11.7]}
26... Rxe7 {[%clk 0:00:35.3]} 27. Rxe7+ {[%clk 0:01:12.6]} 27... Kxg6 {[%clk
0:00:34.5]} 28. Rxc7 {[%clk 0:00:47.4]} 28... Qa1+ {[%clk 0:00:31]} 29. Kd2
{[%clk 0:00:46.7]} 29... Rd8+ {[%clk 0:00:30.5]} 30. Ke3 {[%clk 0:00:44.1]}
30... Qd4+ {[%clk 0:00:27.3]} 31. Ke2 {[%clk 0:00:42.8]} 31... Qd2+ {[%clk
0:00:21.9]} 32. Kf1 {[%clk 0:00:36.8]} 32... Qd1+ {[%clk 0:00:21.9]} 33. Kg2
{[%clk 0:00:34.9]} 33... Qf3+ {[%clk 0:00:21.8]} 34. Kg1 {[%clk 0:00:35.4]}
34... Rd1# {[%clk 0:00:21.5]} 0-1

[Event "*** SCC Grand Prix: Titled Tuesday Blitz"]
[Site "Chess.com"]
[Date "2020.06.02"]
[Round "1"]
[White "Quattroporte300"]
[Black "Norival"]
[Result "1-0"]
[WhiteElo "2319"]
[BlackElo "2619"]
[TimeControl "180+1"]
[EndTime "10:06:32 PDT"]
[Termination "Quattroporte300 won by resignation"]

1. e4 {[%clk 0:03:00.9]} 1... c5 {[%clk 0:02:59.8]} 2. Nf3 {[%clk 0:03:00]} 2...
e6 {[%clk 0:02:59.6]} 3. d4 {[%clk 0:02:59.6]} 3... cxd4 {[%clk 0:03:00.5]} 4.
Nxd4 {[%clk 0:03:00.2]} 4... a6 {[%clk 0:03:01.1]} 5. Be2 {[%clk 0:02:57.7]}
5... Qc7 {[%clk 0:03:00]} 6. O-O {[%clk 0:02:53.5]} 6... Nf6 {[%clk 0:02:59]} 7.
Nc3 {[%clk 0:02:52.5]} 7... b5 {[%clk 0:02:58.7]} 8. Bf3 {[%clk 0:02:49.8]} 8...
e5 {[%clk 0:02:33.2]} 9. Nf5 {[%clk 0:02:45]} 9... d6 {[%clk 0:02:26.4]} 10. Bg5
{[%clk 0:02:43.6]} 10... Nbd7 {[%clk 0:02:26]} 11. Qd2 {[%clk 0:02:28.9]} 11...
b4 {[%clk 0:02:06.8]} 12. Ne2 {[%clk 0:02:25.1]} 12... Bb7 {[%clk 0:02:02.2]}
13. Neg3 {[%clk 0:02:18.1]} 13... h6 {[%clk 0:02:00.4]} 14. Be3 {[%clk
0:02:10.7]} 14... g6 {[%clk 0:01:54.1]} 15. Nxh6 {[%clk 0:01:55.8]} 15... Nc5
{[%clk 0:01:44.5]} 16. Ng4 {[%clk 0:01:21.6]} 16... Nxg4 {[%clk 0:01:33.9]} 17.
Bxg4 {[%clk 0:01:21.9]} 17... Nxe4 {[%clk 0:01:29.6]} 18. Nxe4 {[%clk
0:01:21.7]} 18... Bxe4 {[%clk 0:01:30.2]} 19. Qxb4 {[%clk 0:01:12.1]} 19... Qb7
{[%clk 0:01:08.9]} 20. Qxb7 {[%clk 0:01:09.2]} 20... Bxb7 {[%clk 0:01:09.8]} 21.
f4 {[%clk 0:01:02.8]} 21... f5 {[%clk 0:01:03.4]} 22. Be2 {[%clk 0:00:59.9]}
22... Rc8 {[%clk 0:00:58.6]} 23. c3 {[%clk 0:00:59.2]} 23... Bh6 {[%clk
0:00:56.7]} 24. Rad1 {[%clk 0:00:55.3]} 24... Ke7 {[%clk 0:00:56.5]} 25. Rfe1
{[%clk 0:00:50.2]} 25... Rhd8 {[%clk 0:00:53.1]} 26. Bf1 {[%clk 0:00:41.1]}
26... Kf6 {[%clk 0:00:51.1]} 27. fxe5+ {[%clk 0:00:40.6]} 27... dxe5 {[%clk
0:00:51.1]} 28. Bxh6 {[%clk 0:00:38.8]} 28... f4 {[%clk 0:00:43.8]} 29. h4
{[%clk 0:00:38.4]} 29... Kf5 {[%clk 0:00:42.9]} 30. Bg5 {[%clk 0:00:37.3]} 30...
Rxd1 {[%clk 0:00:43.4]} 31. Rxd1 {[%clk 0:00:37.5]} 31... e4 {[%clk 0:00:43.9]}
32. Rd6 {[%clk 0:00:34]} 32... Rc6 {[%clk 0:00:43.1]} 33. Rxc6 {[%clk
0:00:33.7]} 33... Bxc6 {[%clk 0:00:44]} 34. Bxa6 {[%clk 0:00:33.8]} 34... e3
{[%clk 0:00:43.3]} 35. Be2 {[%clk 0:00:32.5]} 35... Bd5 {[%clk 0:00:42.5]} 36.
b3 {[%clk 0:00:30.9]} 36... Be4 {[%clk 0:00:42.1]} 37. b4 {[%clk 0:00:29.1]}
37... Bc2 {[%clk 0:00:42]} 38. b5 {[%clk 0:00:28.1]} 1-0

[Event "*** SCC Grand Prix: Titled Tuesday Blitz"]
[Site "Chess.com"]
[Date "2020.06.02"]
[Round "1"]
[White "Zmeeed63"]
[Black "TregubovP"]
[Result "0-1"]
[WhiteElo "2227"]
[BlackElo "2571"]
[TimeControl "180+1"]
[EndTime "10:06:32 PDT"]
[Termination "TregubovP won by resignation"]

1. d4 {[%clk 0:02:59.7]} 1... Nf6 {[%clk 0:02:58.7]} 2. c4 {[%clk 0:02:58.6]}
2... e6 {[%clk 0:02:58.4]} 3. Nf3 {[%clk 0:02:56.7]} 3... Bb4+ {[%clk
0:02:54.4]} 4. Bd2 {[%clk 0:02:55.1]} 4... Qe7 {[%clk 0:02:52.4]} 5. g3 {[%clk
0:02:54.1]} 5... Bxd2+ {[%clk 0:02:46.6]} 6. Qxd2 {[%clk 0:02:38.2]} 6... Nc6
{[%clk 0:02:41.5]} 7. Nc3 {[%clk 0:02:34.6]} 7... d5 {[%clk 0:02:40.8]} 8. Bg2
{[%clk 0:02:19.8]} 8... O-O {[%clk 0:02:38.7]} 9. O-O {[%clk 0:02:19.1]} 9...
dxc4 {[%clk 0:02:37.2]} 10. e4 {[%clk 0:02:13.6]} 10... Rd8 {[%clk 0:02:33.9]}
11. Rfd1 {[%clk 0:02:04.3]} 11... Rb8 {[%clk 0:02:22.2]} 12. Qe2 {[%clk
0:02:03.6]} 12... b5 {[%clk 0:02:20.4]} 13. a3 {[%clk 0:01:27.1]} 13... a6
{[%clk 0:02:12]} 14. Rd2 {[%clk 0:01:27]} 14... Na5 {[%clk 0:02:11.6]} 15. Re1
{[%clk 0:01:14.1]} 15... Nb3 {[%clk 0:02:09.8]} 16. Rdd1 {[%clk 0:01:14.4]}
16... Bb7 {[%clk 0:02:09.9]} 17. h3 {[%clk 0:00:56.4]} 17... h6 {[%clk 0:02:09]}
18. Qe3 {[%clk 0:00:56.4]} 18... c5 {[%clk 0:02:06.5]} 19. dxc5 {[%clk
0:00:28.6]} 19... Nxc5 {[%clk 0:01:54.5]} 20. Nd4 {[%clk 0:00:28.2]} 20... Nd3
{[%clk 0:01:51.4]} 21. Re2 {[%clk 0:00:28.1]} 21... Qc5 {[%clk 0:01:44.2]} 22.
Nc2 {[%clk 0:00:19.8]} 22... Qxe3 {[%clk 0:01:32]} 23. Nxe3 {[%clk 0:00:20.7]}
23... Rd7 {[%clk 0:01:19.1]} 24. Red2 {[%clk 0:00:20.6]} 24... Rbd8 {[%clk
0:01:18.8]} 25. e5 {[%clk 0:00:15.4]} 25... Bxg2 {[%clk 0:01:12.6]} 26. exf6
{[%clk 0:00:11.7]} 26... Bf3 {[%clk 0:01:10.4]} 27. Rf1 {[%clk 0:00:09.2]} 27...
gxf6 {[%clk 0:01:07.3]} 28. Ng4 {[%clk 0:00:05.5]} 28... Kg7 {[%clk 0:01:05.2]}
29. Nh2 {[%clk 0:00:04.7]} 29... Bc6 {[%clk 0:01:00.9]} 30. Ng4 {[%clk
0:00:04.7]} 30... f5 {[%clk 0:00:58.2]} 31. Ne3 {[%clk 0:00:04.6]} 31... Ne5
{[%clk 0:00:56.1]} 32. Rc2 {[%clk 0:00:03.3]} 32... Nf3+ {[%clk 0:00:55.3]} 33.
Kg2 {[%clk 0:00:03.6]} 33... Ne1+ {[%clk 0:00:53.9]} 0-1

[Event "*** SCC Grand Prix: Titled Tuesday Blitz"]
[Site "Chess.com"]
[Date "2020.06.02"]
[Round "1"]
[White "Chessmatus"]
[Black "Shushik"]
[Result "1-0"]
[WhiteElo "2525"]
[BlackElo "2159"]
[TimeControl "180+1"]
[EndTime "10:06:32 PDT"]
[Termination "Chessmatus won by resignation"]

1. e4 {[%clk 0:02:54.7]} 1... e5 {[%clk 0:02:57.5]} 2. Nf3 {[%clk 0:02:52.4]}
2... Nc6 {[%clk 0:02:57.7]} 3. Bb5 {[%clk 0:02:50.2]} 3... Nf6 {[%clk
0:02:57.1]} 4. d3 {[%clk 0:02:49.3]} 4... d6 {[%clk 0:02:57]} 5. O-O {[%clk
0:02:46.4]} 5... a6 {[%clk 0:02:55.8]} 6. Ba4 {[%clk 0:02:42.8]} 6... b5 {[%clk
0:02:54.9]} 7. Bb3 {[%clk 0:02:42.7]} 7... Na5 {[%clk 0:02:54.5]} 8. Nbd2 {[%clk
0:02:23.8]} 8... Be7 {[%clk 0:02:50.5]} 9. c3 {[%clk 0:02:21.6]} 9... c5 {[%clk
0:02:44.5]} 10. Bc2 {[%clk 0:02:19.8]} 10... Nc6 {[%clk 0:02:44.2]} 11. h3
{[%clk 0:02:15.9]} 11... h6 {[%clk 0:02:39]} 12. Re1 {[%clk 0:02:15.5]} 12... g5
{[%clk 0:02:34.8]} 13. Nf1 {[%clk 0:02:03]} 13... g4 {[%clk 0:02:21.9]} 14. hxg4
{[%clk 0:02:02.8]} 14... Bxg4 {[%clk 0:02:21.4]} 15. a4 {[%clk 0:01:58.8]} 15...
b4 {[%clk 0:02:18.1]} 16. a5 {[%clk 0:01:49.1]} 16... h5 {[%clk 0:02:00.3]} 17.
Ba4 {[%clk 0:01:43]} 17... Bd7 {[%clk 0:01:59.4]} 18. d4 {[%clk 0:01:38.3]}
18... Rg8 {[%clk 0:01:34.2]} 19. dxc5 {[%clk 0:01:32.5]} 19... dxc5 {[%clk
0:01:27.8]} 20. Bg5 {[%clk 0:01:17.9]} 20... Qc7 {[%clk 0:01:20.7]} 21. Bxf6
{[%clk 0:01:12.5]} 21... Bxf6 {[%clk 0:01:20.2]} 22. Ne3 {[%clk 0:01:13.2]}
22... h4 {[%clk 0:00:41.8]} 23. Nd5 {[%clk 0:00:59.9]} 23... Qd8 {[%clk
0:00:40.7]} 24. Nb6 {[%clk 0:00:56.7]} 24... Rb8 {[%clk 0:00:25]} 25. Nxd7
{[%clk 0:00:56.2]} 25... Qxd7 {[%clk 0:00:25]} 26. Qd5 {[%clk 0:00:56.5]} 26...
Qh3 {[%clk 0:00:10.1]} 27. Bxc6+ {[%clk 0:00:54.6]} 27... Kf8 {[%clk 0:00:10.3]}
28. Qd6+ {[%clk 0:00:53.8]} 28... Be7 {[%clk 0:00:10.3]} 29. Qxb8+ {[%clk
0:00:53.8]} 29... Kg7 {[%clk 0:00:09]} 30. Qxg8+ {[%clk 0:00:54.1]} 30... Kxg8
{[%clk 0:00:09.2]} 31. gxh3 {[%clk 0:00:55]} 1-0

[Event "*** SCC Grand Prix: Titled Tuesday Blitz"]
[Site "Chess.com"]
[Date "2020.06.02"]
[Round "1"]
[White "sopo-tereladze"]
[Black "NewBornNow"]
[Result "1/2-1/2"]
[WhiteElo "2353"]
[BlackElo "2690"]
[TimeControl "180+1"]
[EndTime "10:06:33 PDT"]
[Termination "Game drawn by agreement"]

1. e4 {[%clk 0:02:43.5]} 1... d6 {[%clk 0:02:59.5]} 2. Nf3 {[%clk 0:02:41.5]}
2... Nf6 {[%clk 0:02:59.5]} 3. Nc3 {[%clk 0:02:39]} 3... e5 {[%clk 0:02:59.1]}
4. d4 {[%clk 0:02:31.4]} 4... Nbd7 {[%clk 0:02:58.9]} 5. Bc4 {[%clk 0:02:26.2]}
5... Be7 {[%clk 0:02:58.7]} 6. O-O {[%clk 0:02:25.2]} 6... O-O {[%clk
0:02:58.6]} 7. Re1 {[%clk 0:02:23.9]} 7... c6 {[%clk 0:02:58.6]} 8. a4 {[%clk
0:02:23.5]} 8... a5 {[%clk 0:02:58.4]} 9. h3 {[%clk 0:02:18.7]} 9... exd4 {[%clk
0:02:55.8]} 10. Nxd4 {[%clk 0:02:17.5]} 10... Nc5 {[%clk 0:02:55.1]} 11. b3
{[%clk 0:02:09.6]} 11... Be6 {[%clk 0:02:33]} 12. Bxe6 {[%clk 0:02:05.3]} 12...
fxe6 {[%clk 0:02:32.6]} 13. Ba3 {[%clk 0:02:04.2]} 13... Nfd7 {[%clk 0:02:31.7]}
14. Qe2 {[%clk 0:01:50.1]} 14... Bf6 {[%clk 0:02:07.9]} 15. Rad1 {[%clk
0:01:46]} 15... Kh8 {[%clk 0:02:03.9]} 16. Qe3 {[%clk 0:01:38.8]} 16... Bg5
{[%clk 0:02:00.1]} 17. Qe2 {[%clk 0:01:35.3]} 17... Qf6 {[%clk 0:01:55.1]} 18.
Nf3 {[%clk 0:01:24.4]} 18... Qxc3 {[%clk 0:01:46.9]} 19. Nxg5 {[%clk 0:01:22.3]}
19... Qf6 {[%clk 0:01:45]} 20. Nf3 {[%clk 0:01:21.2]} 20... d5 {[%clk
0:01:38.3]} 21. exd5 {[%clk 0:01:16.7]} 21... exd5 {[%clk 0:01:38.1]} 22. c4
{[%clk 0:01:15.9]} 22... dxc4 {[%clk 0:01:27.3]} 23. Qxc4 {[%clk 0:01:16.8]}
23... b6 {[%clk 0:01:26.2]} 24. Qc2 {[%clk 0:01:14.8]} 24... Qf7 {[%clk
0:01:20.5]} 25. Re3 {[%clk 0:01:10.6]} 25... h6 {[%clk 0:01:16.5]} 26. Bb2
{[%clk 0:01:08.6]} 26... Rfe8 {[%clk 0:01:12.7]} 27. Rde1 {[%clk 0:01:07.7]}
27... Rxe3 {[%clk 0:01:11.7]} 28. Rxe3 {[%clk 0:01:08.6]} 28... Re8 {[%clk
0:01:10.5]} 29. Rxe8+ {[%clk 0:01:05.5]} 29... Qxe8 {[%clk 0:01:10.3]} 30. Qc3
{[%clk 0:01:06.4]} 30... Qf7 {[%clk 0:01:07.7]} 31. Nd4 {[%clk 0:00:59.6]} 31...
Ne5 {[%clk 0:01:06.7]} 32. Qg3 {[%clk 0:00:54.3]} 32... Ncd3 {[%clk 0:01:00.4]}
33. Nxc6 {[%clk 0:00:35]} 33... Nxc6 {[%clk 0:00:34.4]} 34. Qxd3 {[%clk
0:00:33.1]} 1/2-1/2